Cogmind - Beta 13 @@@ ROGUE MODE // 2024.07.08 @ 11:14:24 Player: ThatBishHoly Result: Destroyed by G-47 Trooper with Particle Gun Performance ------------- Evolutions (2) 1000 Regions Visited (3) 600 Robots Destroyed (51) 255 Value Destroyed (1685) 1685 Prototype IDs (4) 80 Alien Tech Used (0) 0 Bonus (291) 291 TOTAL SCORE: 3911 Bonus ------- Pacifist 200 High Alert Combat Kills 91 Cogmind --------- Core Integrity 0/550 Matter 10/300 Energy 70/100 System Corruption 1% Temperature Cool (27) Movement Treading (170) Location -8/Materials Parts ------- > --- POWER (1) -------- (None) > --- PROPULSION (4) --- Armored Treads Armored Treads Armored Treads Armored Treads > --- UTILITY (4) ------ Large Storage Unit Melee Analysis Suite > --- WEAPON (2) ------- Greatsword > --- INVENTORY (15) --- Armored Treads Shock Absorption System Shock Absorption System Mini Assault Cannon Mini Assault Cannon Heavy Rocket Launcher Heavy Rocket Launcher Improved Datajack Scythe Scythe Greatsword Peak State ------------ > --- POWER ------------ Deuterium Engine > --- PROPULSION ------- Armored Treads Armored Treads Armored Treads Armored Treads > --- UTILITY ---------- Medium Storage Unit Large Storage Unit Melee Analysis Suite System Shield > --- WEAPON ----------- Mini Assault Cannon Heavy Rocket Launcher > --- INVENTORY -------- Armored Treads Shock Absorption System Shock Absorption System Mini Assault Cannon Heavy Rocket Launcher Heavy Rocket Launcher Improved Datajack Scythe Scythe [Rating: 35] Favorites ----------- Power Deuterium Engine Engine Deuterium Engine Propulsion Light Treads Treads Light Treads Wheel Armored Wheel Utility Small Storage Unit Device Sensor Array Storage Small Storage Unit Processor Transport Network Coupler Hackware System Shield Protection Reactive Plating Weapon Light Assault Rifle Energy Cannon Advanced Beam Cannon Ballistic Gun Light Assault Rifle Ballistic Cannon Mini Assault Cannon Launcher Heavy Rocket Launcher Slashing Weapon Scythe Build | -11 -10 -9 -8 ------- Run | Yrd Mat Mat Mat Slots Evolved 4 | . . 2 2 Power . | . . . . Propulsion 2 | . . 2 . Utility 2 | . . . 2 Weapon . | . . . . Parts Attached 65 | 6 5 22 32 Power 4 | 1 . 2 1 Engine 4 | 1 . 2 1 Core . | . . . . Reactor . | . . . . Propulsion 20 | 2 2 8 8 Treads 16 | 2 . 6 8 Leg . | . . . . Wheel 4 | . 2 2 . Hover . | . . . . Flight . | . . . . Utility 16 | 1 3 5 7 Device 3 | . 1 . 2 Storage 5 | 1 2 1 1 Processor 2 | . . . 2 Hackware 1 | . . . 1 Protection 5 | . . 4 1 Artifact . | . . . . Weapon 25 | 2 . 7 16 Energy Gun . | . . . . Energy Cannon 3 | . . 3 . Ballistic Gun 10 | 2 . 4 4 Ballistic Cannon 3 | . . . 3 Launcher 7 | . . . 7 Special Weapon . | . . . . Impact Weapon . | . . . . Slashing Weapon 2 | . . . 2 Piercing Weapon . | . . . . Special Melee Weapon . | . . . . Unidentified Prototypes 4 | . . 1 3 Parts Lost 22 | . . 6 16 Power 3 | . . 1 2 Propulsion 8 | . . 2 6 Utility 7 | . . 2 5 Weapon 4 | . . 1 3 Highest Loss Streak 4 | . . 4 4 To Critical Strikes . | . . . . Average Slot Usage (%) 88 | . 99 89 83 Engine 9 | . 14 8 8 Treads 27 | . 24 29 26 Wheel 4 | . 3 9 . Device 5 | . 13 . 6 Storage 11 | . 14 11 10 Processor 2 | . . . 5 Protection 6 | . . 8 6 Energy Cannon 1 | . . 2 1 Ballistic Gun 12 | . 28 19 2 Ballistic Cannon 3 | . . . 7 Launcher 2 | . . . 5 Naked Turns . | . . . . Heaviest Build 50 | 13 15 37 50 Greatest Support 80 | 40 40 80 80 Greatest Overweight (x) 11 | . . . 11 Average Overweight (x) . | . . . . Largest Inventory Capacity 30 | 8 30 10 15 Average Capacity 9 | 7 8 8 10 Most Carried 13 | 5 8 10 13 Average Carried 7 | . 3 7 8 Final Capacity 15 | 8 8 10 15 Final Carried 12 | . 7 10 12 Class Distribution -------------------- 55% | Mutant 44% | Scavenger-Mutant Dominant Class ---------------- Mutant | -10/Materials Scavenger-Mutant | -9/Materials Mutant | -8/Materials Resources | -11 -10 -9 -8 ----------- Run | Yrd Mat Mat Mat Matter Collected 1382 | 227 . 436 719 Remotely . | . . . . Salvage Created 1546 | . . 504 1042 Parts 93 | . . 37 56 Haulers Intercepted 2 | . . 1 1 Recyclers Shooed 1 | . . . 1 Parts Field Recycled . | . . . . Retrieved Matter . | . . . . Parts Self-Destructed . | . . . . Prevented . | . . . . Kills | -11 -10 -9 -8 ------- Run | Yrd Mat Mat Mat Combat Hostiles Destroyed 35 | . . 12 23 Melee 3 | . . . 3 Guns 13 | . . 10 3 Cannons 9 | . . . 9 AOE 10 | . . 2 8 Classes Destroyed 11 | . . 4 7 Worker 3 | . . . 3 Builder 8 | . . . 8 Hauler 2 | . . 1 1 Recycler 2 | . . . 2 Watcher 1 | . . . 1 Swarmer 4 | . . 4 . Grunt 18 | . . 2 16 Sentry 9 | . . 6 3 Specialist 2 | . . . 2 Hunter 1 | . . . 1 Heavy 1 | . . . 1 Best Kill Streak 7 | . . 2 7 Combat Bots Only 4 | . . 2 4 Max Kills in Single Turn 3 | . . 1 3 Gunslinging . | . . . . Exploded 1 | . . 1 1 Melee 1 | . . . 1 Uniques/NPCs Destroyed . | . . . . Combat | -11 -10 -9 -8 -------- Run | Yrd Mat Mat Mat Hostile Shots Fired 415 | . . 145 270 Missed 118 | . . 46 72 Damage Taken 5070 | . . 1198 3872 Core 791 | . . 235 556 Absorbed by Shields . | . . . . Redirected to Shielding 99 | . . . 99 Ignored by Resistances 40 | . . . 40 Core Remaining (%) 80 | 100 100 41 . Volleys Fired 120 | 1 2 58 59 Largest 2 | 2 2 2 2 Hottest 136 | 40 40 43 136 Shots Fired 229 | 2 4 110 113 Gun 146 | 2 4 110 30 Cannon 61 | . . . 61 Launcher 22 | . . . 22 Special . | . . . . Kinetic 201 | 2 4 110 85 Thermal 6 | . . . 6 Explosive 19 | . . . 19 Electromagnetic 3 | . . . 3 Robot Hit Streak 9 | . 1 9 9 Robot Miss Streak 8 | 2 4 5 8 Penetration Max . | . . . . Secondary Targets . | . . . . Shots Hit Robots 147 | . 1 63 83 Core Hits 104 | . 1 25 78 Critical Kills . | . . . . Critical Parts Destroyed 1 | . . 1 . Critical Strikes 3 | . . 1 2 Destroy 1 | . . 1 . Blast 1 | . . . 1 Sever 1 | . . . 1 Melee Attacks 16 | . . . 16 Impact . | . . . . Slashing 16 | . . . 16 Piercing . | . . . . Sneak Attacks . | . . . . Combat Hostiles . | . . . . Follow-up Attacks . | . . . . Damage Inflicted 4580 | . 16 732 3832 Guns 994 | . 11 726 257 Cannons 1073 | . . . 1073 Explosions 2132 | . . . 2132 Melee 316 | . . . 316 Ramming 65 | . 5 6 54 Kinetic 1985 | . 11 726 1248 Thermal 193 | . . . 193 Explosive 1874 | . . . 1874 Electromagnetic 147 | . . . 147 Impact . | . . . . Slashing 316 | . . . 316 Piercing . | . . . . Highest Corruption 1 | . . . 1 Average Corruption 1 | . . . 1 Corruption Purged . | . . . . Corruption Blocked . | . . . . Effects 6 | . . . 6 Message Errors 3 | . . . 3 Matter Fused 2 | . . . 2 Weapon Failures 1 | . . . 1 Overload Shots . | . . . . Overflow Damage 67 | . . . 67 Projectiles . | . . . . Explosions 67 | . . . 67 Melee . | . . . . Knockbacks 20 | . . . 20 Impact . | . . . . Kinetic 20 | . . . 20 Secondary . | . . . . Self-Inflicted Damage 421 | . . 1 420 Shots 17 | . . . 17 Rammed 19 | . 1 5 13 Targets Rammed 20 | . 1 5 14 Kicked . | . . . . Crushed 1 | . . . 1 Highest Temperature 504 | . . 30 504 Average Temperature 109 | . . 9 132 Received Heat Transfer 1941 | . . 303 1638 Effects 4 | . . . 4 Shutdowns 2 | . . . 2 Short Circuit 1 | . . . 1 Damage (minor) 1 | . . . 1 Siege Activations . | . . . . Robots Corrupted . | . . . . Combat Hostiles . | . . . . Parts Fried 1 | . . . 1 Impact Corruptions . | . . . . Robots Melted . | . . . . Combat Hostiles . | . . . . Parts Melted . | . . . . Heat Transferred 248 | . . . 248 Parts Sabotaged . | . . . . Parts Stolen . | . . . . Parts Stripped . | . . . . Power Chain Reactions 1 | . . . 1 Alert | -11 -10 -9 -8 ------- Run | Yrd Mat Mat Mat Peak Influence 708 | . 45 288 708 Initial 35 | . . 18 35 Average 211 | . 28 167 318 Maximum Alert Level 3 | . . 1 3 Low Security (%) 50 | 100 100 54 27 Level 1 35 | . . 45 39 Level 2 14 | . . . 31 Level 3 . | . . . 1 Level 4 . | . . . . Level 5 . | . . . . High Security . | . . . . Max Security . | . . . . Squads Dispatched 8 | . 1 1 6 Investigation 1 | . . 1 . Extermination . | . . . . Reinforcement 7 | . 1 . 6 Assault . | . . . . Garrison . | . . . . Intercept . | . . . . Searches Triggered . | . . . . Construction Impeded 2 | . . . 2 Haulers Reinforced . | . . . . Active Scanning Responses . | . . . . Cargo Convoy Interrupts . | . . . . Stealth | -11 -10 -9 -8 --------- Run | Yrd Mat Mat Mat Distress Signals 1 | . . . 1 Communications Jammed . | . . . . Distress Signals . | . . . . Times Spotted 72 | . 6 24 42 Peak Tracking Total 8 | . 2 8 4 Tactical Retreats 6 | . . 1 5 Traps | -11 -10 -9 -8 ------- Run | Yrd Mat Mat Mat Traps Triggered 1 | . . 1 . Indirectly . | . . . . Trap Hack Attempts . | . . . . Triggered . | . . . . Disarmed . | . . . . Reprogrammed . | . . . . Reused . | . . . . Traps Extracted . | . . . . Installed . | . . . . Triggered . | . . . . Machines | -11 -10 -9 -8 ---------- Run | Yrd Mat Mat Mat Machines Disabled 9 | . . 2 7 Max in Single Turn 2 | . . 1 2 Machines Repaired . | . . . . Machines Dismantled . | . . . . Machines Sabotaged . | . . . . Overloaded Fab Kills . | . . . . Hacking | -11 -10 -9 -8 --------- Run | Yrd Mat Mat Mat Machines Accessed 3 | . 1 1 1 Terminals 3 | . 1 1 1 Fabricators . | . . . . Repair Stations . | . . . . Recycling Units . | . . . . Scanalyzers . | . . . . Garrison Access . | . . . . Total Hacks 6 | . 2 1 3 Successful 3 | . . 1 2 Failed 3 | . 2 . 1 Catastrophic 2 | . 2 . . Database Lockouts . | . . . . Manual . | . . . . Terminals 6 | . 2 1 3 Fabricators . | . . . . Repair Stations . | . . . . Recycling Units . | . . . . Scanalyzers . | . . . . Garrison Access . | . . . . Terminal Hacks 3 | . . 1 2 Locate Traps 1 | . . . 1 Dispatch Records 1 | . . . 1 Zone Layout 1 | . . 1 . Fabricator Hacks . | . . . . Repair Station Hacks . | . . . . Recycling Unit Hacks . | . . . . Scanalyzer . | . . . . Garrison Access Hacks . | . . . . Unauthorized Hacks . | . . . . Terminals . | . . . . Fabricators . | . . . . Repair Stations . | . . . . Recycling Units . | . . . . Scanalyzers . | . . . . Garrison Access . | . . . . Data Cores Recovered . | . . . . Used . | . . . . Hacking Detections 2 | . 1 . 1 Full Trace Events . | . . . . Feedback Events . | . . . . Feedback Blocked . | . . . . Robot Schematics Acquired . | . . . . Robots Built . | . . . . Authchips . | . . . . Time . | . . . . Total Robot Build Rating . | . . . . Part Schematics Acquired . | . . . . Parts Built . | . . . . Authchips . | . . . . Time . | . . . . Total Part Build Rating . | . . . . Parts Repaired . | . . . . Time . | . . . . Parts Recycled . | . . . . Recycled Matter . | . . . . Retrieved Matter . | . . . . Retrieved Components . | . . . . Parts Scanalyzed . | . . . . Part Schematics Acquired . | . . . . Parts Damaged . | . . . . Bothacking | -11 -10 -9 -8 ------------ Run | Yrd Mat Mat Mat Used RIF Installer . | . . . . Robots Hacked . | . . . . Non-combat . | . . . . Combat . | . . . . Robot Hacks Applied . | . . . . Relay Couplers Released . | . . . . Fabnet Peak Effective % . | . . . . Robots Rewired . | . . . . Allies Hacked . | . . . . Hacks Repelled . | . . . . Allies | -11 -10 -9 -8 -------- Run | Yrd Mat Mat Mat Total Allies . | . . . . Largest Group . | . . . . Highest-Rated Group . | . . . . Highest-Rated Ally . | . . . . Total Orders . | . . . . Ally Attacks . | . . . . Total Damage . | . . . . Kills . | . . . . Allies Corrupted . | . . . . Allies Melted . | . . . . Intel | -11 -10 -9 -8 ------- Run | Yrd Mat Mat Mat Robot Analysis Total . | . . . . Derelict Logs Recovered . | . . . . Drone Launches . | . . . . Drone Recoveries . | . . . . Exploration | -11 -10 -9 -8 ------------- Run | Yrd Mat Mat Mat Turns Passed 2653 | 55 393 1007 1198 Spaces Moved 1310 | 35 256 562 457 Core 35 | 13 . . 22 Treads 1057 | 22 198 402 435 Legs . | . . . . Wheels 218 | . 58 160 . Hover . | . . . . Flight . | . . . . Fastest Speed 50 | 50 90 90 160 Average Speed 158 | 119 144 140 192 Slowest Speed 600 | 160 160 160 600 Overloaded Moves . | . . . . Propulsion Burnouts . | . . . . Robots Hopped . | . . . . Cave-ins Triggered . | . . . . Exploration Rate (%) 25 | 3 34 36 29 Regions Visited 3 Branch Regions . Pre-discovered Areas . | . . . . Known Exits Taken . | . . . . Unknown Exits Taken 3 | 1 1 1 . Scrap Searched . | . . . . Spaces Dug 15 | . . . 15 Terrain Destroyed 261 | . . . 261 Melee . | . . . . Projectile 6 | . . . 6 AOE 255 | . . . 255 Terrain Rammed . | . . . . Walls Destroyed . | . . . . Machines Disabled . | . . . . Actions | -11 -10 -9 -8 --------- Run | Yrd Mat Mat Mat Total 1639 | 46 276 688 629 Wait . | . . . . Move 1307 | 34 255 561 457 Hop . | . . . . Pick Up 63 | 5 9 19 30 Fast Attach 14 | 1 . 9 4 Attach 25 | 5 3 4 13 Detach 4 | . 2 . 2 Swap 27 | . 2 9 16 Drop 43 | . 2 23 18 Fire 120 | 1 2 58 59 Melee 16 | . . . 16 Ram 3 | . . 3 . Kick . | . . . . Crush 17 | . 1 2 14 Escape Stasis . | . . . . Rewire . | . . . . Trap . | . . . . Miscellaneous . | . . . . Route ------- -11/Scrapyard -10/Materials -9/Materials -8/Materials History --------- Turn | Location | Event 4 | -11/Scrapyard | Discovered new exit (range 16) 56 | -11/Scrapyard | Entered Materials 301 | -10/Materials | Build established: Mutant 432 | -10/Materials | Discovered new exit (range 7) 449 | -10/Materials | Entered another Materials area 449 | -9/Materials | Evolved 2 slots: Propulsion x2 653 | -9/Materials | Core integrity fell below 50% 686 | -9/Materials | Lost 4 parts (2n1u1w) 1093 | -9/Materials | Discovered new exit (range 15) 1112 | -9/Materials | Build established: Scavenger-Mutant 1456 | -9/Materials | Entered another Materials area 1456 | -8/Materials | Evolved 2 slots: Utility x2 2142 | -8/Materials | Lost 3 parts (2n1w) 2198 | -8/Materials | Build established: Mutant 2273 | -8/Materials | Core integrity fell below 50% 2315 | -8/Materials | Lost 4 parts (1p1n1u1w) 2317 | -8/Materials | Core integrity fell below 20% 2654 | -8/Materials | Destroyed by G-47 Trooper with Particle Gun Last Messages --------------- 02627_ Hvy. Rocket Launcher destroyed. 02629_ Penetrated by Slug. 02631_ The unstable cave ceiling collapses. 02631_ K-01 Serf collects debris. 02631_ K-01 Serf destroyed. 02632_ Slug penetrates Earth. 02634_ Destroyed Imp. Carbon-fiber Leg. 02634_ X-62 Marksman destroyed. 02636_ The unstable cave ceiling collapses. 02636_ System Shield destroyed. 02636_ Critical hit (Blast). 02637_ H-61 Shepherd destroyed. 02637_ Fusion Modulator explodes. 02637_ W-25 Informer destroyed. 02642_ Acquired 5 matter. 02646_ The unstable cave ceiling collapses. 02648_ Acquired Greatsword. 02649_ The unstable cave ceiling collapses. 02651_ Acquired Greatsword. 02654_ Critical hit (Burn: +37). Map ----- +----------------------------------------------------+ | | | | | | | | | | | | | | | | | | | | | | | | | | | | | | | | | | | ???????????????????????????????????? | | ???????????????????????????????????? | | ????????????????##?????????????????? | | ????????????????#"#???#####????????? | | ???????????????##! #### !!#????????? | | ???????????????#! #;## !!#????????? | | ???????????????#! !!#????????? | | ???????????????#! !!#????????? | | ???????????????#! % /@#????????? | | ???????????????# ! g #????????? | | #####+########## ##????????? | | % #?????????? | | ######## #=! g #??????? | | ??? ##### = #??????? | | ???# # " #??????? | | ???#^^^# #??????? | | ???#^^^# " #??????? | | #### # " #??????? | | # " " +??????? | | + "" ; #??????? | | # """ " #??????? | | #### # """ " #??????? | | #??# # """ " ""# #??????? | | #??# # " # % " # ???????? | | #??# # # "#?????????? | | #??# ####+########???????????????? | | #??# #??# #??????????????????????? | | ##?# #??# #??????????????????????? | | #?# #### #??????????????????????? | | #?# #??????????????????????? | | #?# #??????????????????????? | | %#?# #######????????????????? | | =#?# ][#????????????????? | +----------------------------------------------------+ Best States ------------- Heat Dissipation 31 Energy Generation 14 Energy Capacity 275 Matter Stores 300 Matter Capacity 300 Sight Range 16 Robot Scan Range 14 Terrain Scan Density 10 ECM Strength 1 Armor Coverage 150 Resistance: KI 20 Resistance: EX 25 Power Shielding 66 Evasion (%) 50 Melee Accuracy 5 Recoil Reduction 4 Defensive Hacking 10 Item Schematics ----------------- None Robot Schematics ------------------ None Fabricated ------------ Nothing Alien Tech Used ----------------- None Achievements -------------- None Challenges ------------ None Game ------ Seed HypervelocitySurveybotSpear Manual? 0 Play Time 00:32:36 Cumulative 31.3 hours Start 2024.07.08 @ 10:39:18 End 2024.07.08 @ 11:14:24 Sessions 3 Manual Loads 0 Difficulty Rogue Special Mode None Game No. 98 Rogue 98 Adventurer 0 Explorer 0 Win Type - Total 0 Types 0/0/0/0/0/0/0/0/0 Lore% 18 Gallery% 33 Achievement% 23 Wizard Run 0 Options --------- Layout 1 ASCII 0 Keyboard 0 Movement Arrows Keybinds 0 Fullscreen 1 Font 16/SmallcapsGlow Map View 25x20 Zoom Use 99% Tactical HUD 1 Map Filters NONE Filters NONE Steam SD RUN: a987f219-f297-4f31-8c06-18971d543f38